fUST/lending_fUST_20250606
["ID","MTS","AMOUNT","RATE_DAILY","PERIOD"]
[364640926,1749173441393,-622.551573,0.00024311,7]
[364640928,1749173441402,-622.551573,0.00024311,7]
[364640930,1749173441411,-622.551573,0.00024311,7]
[364640932,1749173441421,-622.551573,0.00024311,7]
[364640934,1749173441431,-622.551573,0.00024311,7]
[364640936,1749173441441,-622.551573,0.00024311,7]
[364640938,1749173441450,-622.551573,0.00024311,7]
[364640940,1749173441459,-622.551573,0.00024311,7]
[364640942,1749173441469,-622.551573,0.00024311,7]
[364640944,1749173441478,-622.551573,0.00024311,7]
[364640946,1749173441488,-622.551573,0.00024311,7]
[364640948,1749173441497,-622.551573,0.00024311,7]
[364640949,1749173441507,-622.551573,0.00024311,7]
[364640950,1749173441517,-622.551573,0.00024311,7]
[364640951,1749173441529,-622.551573,0.00024311,7]
[364640952,1749173441538,-622.551573,0.00024311,7]
[364640953,1749173441548,-622.551581,0.00024311,7]
[364640954,1749173441557,-151.0,0.00024311,7]
[364640955,1749173441568,-151.0,0.00024311,7]
[364640956,1749173441578,-151.0,0.00024311,7]
[364640957,1749173441587,-198.447798,0.00024311,7]
[364640958,1749173441598,-500.0,0.00024313,2]
[364640959,1749173441607,-180.33910529,0.00024313,2]
[364640960,1749173441616,-1959475.32067948,0.00024314,20]
[364640973,1749173441824,-72789.40507825,0.00024314,20]
[364641067,1749173442697,-2141.90545827,0.00024314,20]
[364642014,1749173661859,159.76535,0.00024658,120]
[364642015,1749173696849,31843.1176932,0.00024649,120]
[364642017,1749173766026,302.7,0.000246,120]
[364642027,1749173971099,202.89728,0.00013699,2]
[364642029,1749174193906,235.0,0.00021918,60]
[364642031,1749174263863,234.5,0.00019,2]
[364642033,1749174341122,-150.0,0.00019296,2]
[364642034,1749174341144,-202.89728,0.00020187,2]
[364642035,1749174341165,-300.0,0.00020243,2]
[364642036,1749174341185,-239.43349939,0.00020243,2]
[364642037,1749174354097,-150.20675691,0.00020242,2]
[364642038,1749174446092,-164.90024098,0.00020143,2]
[364642039,1749174446115,-149.79324309,0.00020242,2]
[364642040,1749174446135,-60.56650061,0.00020243,2]
[364642041,1749174446156,-300.0,0.00020243,2]
[364642042,1749174446178,-284.03046619,0.00020243,2]
[364642065,1749174631900,-186.477462,0.00020262,2]
[364642069,1749174631910,-800.0,0.00020486,2]
[364642071,1749174631920,-300.0,0.00021185,2]
[364642074,1749174631931,-1200.0,0.00021185,2]
[364642076,1749174631941,-432.3657344,0.00021186,2]
[364642079,1749174631951,-232.35496233,0.00021186,2]
[364642081,1749174631960,-418.30647774,0.00021186,2]
[364642083,1749174632091,-26.56463087,0.00021186,2]
[364642084,1749174632101,-446.60134472,0.00021186,2]
[364642085,1749174632112,-447.01789922,0.00021186,2]
[364642087,1749174632121,-182.96061048,0.00021425,2]
[364642088,1749174632130,-290.31133276,0.00021458,2]
[364642089,1749174632140,-446.2730401,0.00021459,2]
[364642090,1749174632149,-441.00286677,0.00021459,2]
[364642091,1749174632159,-444.16697775,0.00021459,2]
[364642092,1749174632168,-449.66347712,0.00021459,2]
[364642093,1749174632178,-403.3485965,0.00021459,2]
[364642094,1749174632186,-443.88702218,0.00021459,2]
[364642095,1749174632196,-445.10080806,0.00021459,2]
[364642096,1749174632206,-450.64199151,0.00021459,2]
[364642097,1749174632216,-386.48984706,0.00021459,2]
[364642098,1749174632226,-449.70409836,0.00021459,2]
[364642099,1749174632235,-470.34027473,0.00021459,2]
[364642100,1749174632245,-440.0,0.00021459,2]
[364642101,1749174632255,-435.47334373,0.00021459,2]
[364642102,1749174632264,-227.72858199,0.00021459,2]
[364642103,1749174632274,-432.88782679,0.00021459,2]
[364642104,1749174632283,-384.20317603,0.00021459,2]
[364642105,1749174632293,-472.17501878,0.00021459,2]
[364642106,1749174632303,-221.06405021,0.00021459,2]
[364642123,1749174637875,-227.16820584,0.00021459,2]
[364642124,1749174637884,-515.85792906,0.00021459,2]
[364642125,1749174637895,-443.86368699,0.00021459,2]
[364642126,1749174637905,-442.15642475,0.00021459,2]
[364642127,1749174637915,-438.51119616,0.00021459,2]
[364642128,1749174637926,-444.33076541,0.00021459,2]
[364642129,1749174637937,-445.92021399,0.00021459,2]
[364642130,1749174637947,-440.80894747,0.00021459,2]
[364642131,1749174637957,-444.93608261,0.00021459,2]
[364642132,1749174637966,-415.2488814,0.00021459,2]
[364642133,1749174637975,-243.86277065,0.00021459,2]
[364642134,1749174637987,-196.13722935,0.00021459,2]
[364642135,1749174637996,-442.90901683,0.00021459,2]
[364642136,1749174638006,-440.0,0.00021459,2]
[364642137,1749174638017,-500.35047738,0.00021459,2]
[364642138,1749174638027,-440.0,0.00021459,2]
[364642139,1749174638037,-440.0,0.00021459,2]
[364642140,1749174638046,-440.0,0.00021459,2]
[364642141,1749174638055,-24900.0,0.00021459,2]
[364642142,1749174638065,-152.20824461,0.00021525,2]
[364642143,1749174638075,-468.85584569,0.00021525,2]
[364642144,1749174638084,-265.55390176,0.00021525,2]
[364642146,1749174638095,-279.24129701,0.00021525,2]
[364642147,1749174638105,-800.0,0.00021582,2]
[364642148,1749174638115,-440.0,0.00021733,2]
[364642149,1749174638125,-440.0,0.00021733,2]
[364642150,1749174638135,-191.50755787,0.00021733,2]
[364642151,1749174638144,-440.0,0.00021733,2]
[364642152,1749174638153,-440.0,0.00021733,2]
[364642153,1749174638163,-232.71823439,0.00021798,2]
[364642154,1749174638172,-154.50284559,0.00021798,2]
[364642155,1749174638181,-440.0,0.00022007,2]
[364642156,1749174638191,-440.0,0.00022007,2]
[364642157,1749174638201,-377.21212906,0.00022007,2]
[364642158,1749174638210,-440.0,0.00022007,2]
[364642159,1749174638220,-308.0,0.00022036,2]
[364642160,1749174638232,-440.0,0.00022281,2]
[364642161,1749174638252,-440.0,0.00022281,2]
[364642162,1749174638262,-440.0,0.00022281,2]
[364642163,1749174638272,-207.05840928,0.00022311,2]
[364642164,1749174638281,-150.0,0.00022549,2]
[364642165,1749174638291,-440.0,0.00022555,2]
[364642166,1749174638300,-440.0,0.00022555,2]
[364642167,1749174638310,-440.0,0.00022555,2]
[364642168,1749174638320,-800.0,0.00022678,2]
[364642169,1749174638329,-207.4,0.00022823,2]
[364642170,1749174638339,-235.6276,0.00022829,2]
[364642171,1749174638349,-440.0,0.00022829,2]
[364642172,1749174638359,-440.0,0.00022829,2]
[364642173,1749174638369,-204.40303005,0.000229,8]
[364642174,1749174638378,-440.0,0.00023103,2]
[364642175,1749174638388,-440.0,0.00023103,2]
[364642176,1749174638398,-534.0,0.00023149,2]
[364642177,1749174638407,-204.40302999,0.00023233,8]
[364642178,1749174638417,-440.0,0.00023376,2]
[364642179,1749174638426,-440.0,0.00023376,2]
[364642180,1749174638436,-204.40302999,0.00023567,9]
[364642181,1749174638445,-440.0,0.0002365,2]
[364642182,1749174638455,-440.0,0.0002365,2]
[364642183,1749174638464,-800.0,0.00023774,2]
[364642184,1749174638474,-1005.47,0.000238,5]
[364642185,1749174638483,-436.289735,0.00023829,3]
[364642186,1749174638493,-5024.6266442,0.00023839,2]
[364642187,1749174638504,-204.40302999,0.000239,10]
[364642188,1749174638514,-440.0,0.00023924,2]
[364642189,1749174638524,-440.0,0.00023924,2]
[364642190,1749174638534,-500.0,0.00024039,4]
[364642191,1749174638542,-215.0738,0.00024192,2]
[364642192,1749174638552,-440.0,0.00024198,2]
[364642193,1749174638561,-440.0,0.00024198,2]
[364642194,1749174638570,-204.40302999,0.00024233,10]
[364642195,1749174638579,-500.0,0.00024239,4]
[364642196,1749174638589,-2000.0,0.000243,2]
[364642198,1749174638598,-2000.0,0.000243,2]
[364642199,1749174638607,-1128.2,0.000243,2]
[364642201,1749174638616,-151.0,0.000243,9]
[364642203,1749174638626,-179.958363,0.00024301,2]
[364642205,1749174638635,-582.2407367,0.00024301,2]
[364642208,1749174638645,-161.2315508,0.00024301,2]
[364642210,1749174638655,-835.75,0.00024303,3]
[364642211,1749174638664,-788.73,0.00024303,10]
[364642212,1749174638674,-966.266,0.00024308,2]
[364642213,1749174638684,-712.072,0.00024308,2]
[364642214,1749174638694,-405.0,0.00024308,2]
[364642215,1749174638704,-151.753,0.00024308,2]
[364642216,1749174638714,-12675.11581177,0.0002431,30]
[364642217,1749174638723,-1000.0,0.00024311,7]
[364642218,1749174638733,-183.97196369,0.00024312,2]
[364642219,1749174638743,-500.0,0.00024312,2]
[364642220,1749174638752,-505.23537389,0.00024312,2]
[364642221,1749174638762,-155.292,0.00024313,2]
[364642222,1749174638772,-151.0,0.00024313,7]
[364642223,1749174638781,-151.0,0.00024313,7]
[364642224,1749174638790,-151.0,0.00024313,7]
[364642225,1749174638800,-151.0,0.00024313,7]
[364642226,1749174638809,-192.3323,0.00024313,7]
[364642227,1749174638818,-151.0,0.00024313,7]
[364642228,1749174638828,-152.747616,0.00024313,7]
[364642229,1749174638837,-151.0,0.00024313,7]
[364642230,1749174638847,-154.232203,0.00024313,7]
[364642231,1749174638856,-151.0,0.00024313,7]
[364642232,1749174638866,-151.0,0.00024313,7]
[364642233,1749174638876,-151.0,0.00024313,7]
[364642234,1749174638885,-151.0,0.00024313,7]
[364642235,1749174638895,-151.0,0.00024313,7]
[364642236,1749174638905,-211.269124,0.00024313,7]
[364642237,1749174638915,-560.296416,0.00024313,7]
[364642238,1749174638926,-560.296416,0.00024313,7]
[364642239,1749174638940,-560.296416,0.00024313,7]
[364642240,1749174638949,-560.296416,0.00024313,7]
[364642241,1749174638958,-560.296416,0.00024313,7]
[364642242,1749174638969,-560.296418,0.00024313,7]
[364642243,1749174638980,-151.0,0.00024313,7]
[364642244,1749174638993,-151.0,0.00024313,7]
[364642245,1749174639008,-151.0,0.00024313,7]
[364642246,1749174639017,-151.0,0.00024313,7]
[364642247,1749174639027,-218.862275,0.00024313,7]
[364642248,1749174639037,-151.737453,0.00024313,7]
[364642249,1749174639047,-183.321715,0.00024313,7]
[364642250,1749174639056,-183.321715,0.00024313,7]
[364642251,1749174639066,-183.321715,0.00024313,7]
[364642252,1749174639075,-183.321715,0.00024313,7]
[364642253,1749174639084,-183.321715,0.00024313,7]
[364642254,1749174639093,-183.321715,0.00024313,7]
[364642255,1749174639102,-183.321715,0.00024313,7]
[364642256,1749174639111,-183.321715,0.00024313,7]
[364642257,1749174639120,-183.321715,0.00024313,7]
[364642258,1749174639131,-183.321715,0.00024313,7]
[364642259,1749174639146,-183.321715,0.00024313,7]
[364642260,1749174639162,-183.321715,0.00024313,7]
[364642261,1749174639172,-183.321715,0.00024313,7]
[364642262,1749174639181,-183.321715,0.00024313,7]
[364642263,1749174639190,-183.321715,0.00024313,7]
[364642264,1749174639200,-183.321715,0.00024313,7]
[364642265,1749174639210,-183.321715,0.00024313,7]
[364642266,1749174639220,-183.321715,0.00024313,7]
[364642267,1749174639231,-247.279953,0.00024313,7]
[364642268,1749174639241,-247.279953,0.00024313,7]
[364642269,1749174639250,-183.321715,0.00024313,7]
[364642270,1749174639260,-183.32172,0.00024313,7]
[364642271,1749174639269,-247.279953,0.00024313,7]
[364642272,1749174639279,-247.279953,0.00024313,7]
[364642273,1749174639288,-247.279953,0.00024313,7]
[364642274,1749174639298,-247.279953,0.00024313,7]
[364642275,1749174639307,-247.279953,0.00024313,7]
[364642276,1749174639317,-247.279953,0.00024313,7]
[364642277,1749174639326,-247.279953,0.00024313,7]
[364642278,1749174639336,-247.279953,0.00024313,7]
[364642279,1749174639345,-247.279953,0.00024313,7]
[364642280,1749174639354,-247.279953,0.00024313,7]
[364642281,1749174639364,-247.279953,0.00024313,7]
[364642282,1749174639374,-247.279953,0.00024313,7]
[364642283,1749174639384,-247.279953,0.00024313,7]
[364642284,1749174639394,-247.279953,0.00024313,7]
[364642285,1749174639403,-247.279953,0.00024313,7]
[364642286,1749174639412,-247.279953,0.00024313,7]
[364642287,1749174639421,-247.279953,0.00024313,7]
[364642288,1749174639431,-247.279946,0.00024313,7]
[364642289,1749174639441,-151.0,0.00024313,7]
[364642290,1749174639450,-151.0,0.00024313,7]
[364642291,1749174639459,-151.0,0.00024313,7]
[364642292,1749174639469,-256.916923,0.00024313,7]
[364642293,1749174639478,-151.0,0.00024313,7]
[364642294,1749174639487,-151.0,0.00024313,7]
[364642295,1749174639498,-151.0,0.00024313,7]
[364642297,1749174639507,-151.0,0.00024313,7]
[364642298,1749174639516,-151.0,0.00024313,7]
[364642299,1749174639526,-151.0,0.00024313,7]
[364642300,1749174639535,-151.0,0.00024313,7]
[364642303,1749174639545,-151.0,0.00024313,7]
[364642304,1749174639554,-151.0,0.00024313,7]
[364642305,1749174639563,-151.0,0.00024313,7]
[364642306,1749174639572,-231.297482,0.00024313,7]
[364642307,1749174639582,-151.0,0.00024313,7]
[364642308,1749174639592,-151.0,0.00024313,7]
[364642309,1749174639601,-151.0,0.00024313,7]
[364642310,1749174639611,-153.561152,0.00024313,7]
[364642311,1749174639621,-151.0,0.00024313,7]
[364642312,1749174639631,-151.0,0.00024313,7]
[364642313,1749174639640,-151.0,0.00024313,7]
[364642314,1749174639650,-211.678565,0.00024313,7]
[364642315,1749174639659,-151.0,0.00024313,7]
[364642316,1749174639669,-151.0,0.00024313,7]
[364642317,1749174639679,-151.0,0.00024313,7]
[364642318,1749174639688,-151.0,0.00024313,7]
[364642319,1749174639698,-151.0,0.00024313,7]
[364642320,1749174639708,-151.0,0.00024313,7]
[364642321,1749174639717,-151.0,0.00024313,7]
[364642322,1749174639726,-151.0,0.00024313,7]
[364642323,1749174639735,-151.0,0.00024313,7]
[364642324,1749174639745,-151.0,0.00024313,7]
[364642325,1749174639754,-151.0,0.00024313,7]
[364642326,1749174639763,-151.0,0.00024313,7]
[364642327,1749174639773,-151.0,0.00024313,7]
[364642328,1749174639782,-151.0,0.00024313,7]
[364642329,1749174639792,-151.0,0.00024313,7]
[364642330,1749174639802,-151.0,0.00024313,7]
[364642331,1749174639811,-151.0,0.00024313,7]
[364642332,1749174639821,-151.0,0.00024313,7]
[364642333,1749174639831,-287.595622,0.00024313,7]
[364642334,1749174639944,-789.767322,0.00024313,7]
[364642335,1749174639955,-789.767322,0.00024313,7]
[364642336,1749174639964,-789.767322,0.00024313,7]
[364642337,1749174639974,-789.767322,0.00024313,7]
[364642338,1749174639984,-789.767322,0.00024313,7]
[364642339,1749174639994,-789.767322,0.00024313,7]
[364642340,1749174640004,-789.767322,0.00024313,7]
[364642341,1749174640014,-789.767322,0.00024313,7]
[364642342,1749174640023,-789.767322,0.00024313,7]
[364642343,1749174640033,-789.767322,0.00024313,7]
[364642344,1749174640042,-789.767322,0.00024313,7]
[364642345,1749174640052,-789.767322,0.00024313,7]
[364642346,1749174640061,-789.767322,0.00024313,7]
[364642347,1749174640071,-789.767322,0.00024313,7]
[364642348,1749174640081,-789.767322,0.00024313,7]
[364642349,1749174640091,-789.767322,0.00024313,7]
[364642350,1749174640101,-789.767322,0.00024313,7]
[364642351,1749174640111,-789.767322,0.00024313,7]
[364642352,1749174640120,-789.767322,0.00024313,7]
[364642353,1749174640130,-789.767312,0.00024313,7]
[364642354,1749174640139,-151.0,0.00024313,7]
[364642355,1749174640149,-152.027987,0.00024313,7]
[364642357,1749174640158,-151.0,0.00024313,7]
[364642359,1749174640168,-151.0,0.00024313,7]
[364642361,1749174640177,-151.0,0.00024313,7]
[364642362,1749174640187,-151.0,0.00024313,7]
[364642363,1749174640197,-151.0,0.00024313,7]
[364642364,1749174640207,-171.72499,0.00024313,7]
[364642365,1749174640216,-151.491359,0.00024313,7]
[364642366,1749174640225,-700.716251,0.00024313,7]
[364642367,1749174640235,-700.716251,0.00024313,7]
[364642368,1749174640244,-700.716251,0.00024313,7]
[364642369,1749174640254,-700.716251,0.00024313,7]
[364642370,1749174640265,-700.716251,0.00024313,7]
[364642371,1749174640274,-700.716251,0.00024313,7]
[364642372,1749174640284,-700.716251,0.00024313,7]
[364642373,1749174640293,-700.716251,0.00024313,7]
[364642374,1749174640303,-700.716251,0.00024313,7]
[364642375,1749174640312,-700.716251,0.00024313,7]
[364642376,1749174640321,-700.716251,0.00024313,7]
[364642377,1749174640331,-700.716251,0.00024313,7]
[364642378,1749174640341,-700.716251,0.00024313,7]
[364642379,1749174640351,-700.716251,0.00024313,7]
[364642380,1749174640360,-700.716251,0.00024313,7]
[364642381,1749174640370,-700.716251,0.00024313,7]
[364642382,1749174640380,-700.716251,0.00024313,7]
[364642383,1749174640389,-700.716251,0.00024313,7]
[364642384,1749174640399,-700.716251,0.00024313,7]
[364642385,1749174640408,-700.716255,0.00024313,7]
[364642386,1749174640418,-151.0,0.00024313,7]
[364642387,1749174640427,-151.0,0.00024313,7]
[364642388,1749174640437,-151.0,0.00024313,7]
[364642389,1749174640447,-151.0,0.00024313,7]
[364642391,1749174640456,-151.0,0.00024313,7]
[364642392,1749174640466,-151.0,0.00024313,7]
[364642393,1749174640475,-151.0,0.00024313,7]
[364642394,1749174640485,-259.605386,0.00024313,7]
[364642395,1749174640494,-152.559669,0.00024313,7]
[364642396,1749174640504,-151.0,0.00024313,7]
[364642397,1749174640514,-241.685088,0.00024313,7]
[364642398,1749174640524,-152.099702,0.00024313,7]
[364642399,1749174640534,-1023070.52677985,0.00024313,20]
[364642400,1749174640544,-667123.69747417,0.00024313,20]
[364642401,1749174640554,-9465.83614777,0.00024313,2]
[364642402,1749174640563,-24800.0,0.00024313,30]
[364642403,1749174640573,-153207.4502129,0.00024313,20]
[364642477,1749174766477,444.34,0.00024657,120]
[364642480,1749174801806,414.72,0.000246,120]
[364642509,1749175448362,210.361932,0.00013699,2]
[364642519,1749175539094,-210.361932,0.00020187,2]
[364642520,1749175539115,-600.0,0.00020486,2]
[364642521,1749175539137,-500.0,0.00020486,2]
[364642522,1749175539157,-293.77507321,0.00020486,2]
[364642523,1749175539177,-229.38283631,0.00021459,2]
[364642524,1749175539197,-600.0,0.00021582,2]
[364642525,1749175539221,-1200.0,0.00022462,2]
[364642526,1749175539242,-2295.49527525,0.00022463,2]
[364642534,1749175646127,-528.26061326,0.00022463,2]
[364642537,1749175762134,-241.1025084,0.00020486,2]
[364642554,1749175832544,-258.8974916,0.00020486,2]
[364642555,1749175832554,-500.0,0.00021582,2]
[364642556,1749175832563,-845.42963799,0.00022463,2]
[364642557,1749175832573,-438.3803692,0.00022534,2]
[364642558,1749175832582,-500.0,0.00022678,2]
[364642559,1749175832592,-300.0,0.00022764,2]
[364642560,1749175832602,-2633.0893583,0.00022765,2]
[364642561,1749175832611,-207.4,0.00022883,2]
[364642562,1749175832621,-300.0,0.00022999,2]
[364642563,1749175832630,-300.0,0.00022999,2]
[364642564,1749175832641,-300.0,0.00022999,2]
[364642565,1749175832651,-300.0,0.00022999,2]
[364642566,1749175832660,-300.0,0.00022999,2]
[364642567,1749175832670,-500.0,0.00023,3]
[364642568,1749175832680,-500.0,0.00023,2]
[364642569,1749175832690,-500.0,0.00023,2]
[364642570,1749175832699,-500.0,0.00023,2]
[364642571,1749175832709,-500.0,0.00023,2]
[364642572,1749175832719,-405.0,0.00023248,2]
[364642573,1749175832729,-506.473,0.000233,3]
[364642574,1749175832738,-500.0,0.00023774,2]
[364642575,1749175832748,-392.660762,0.00023829,3]
[364642576,1749175832758,-158.25,0.00024,2]
[364642577,1749175832768,-152.33931627,0.00024212,2]
[364642578,1749175832777,-303.16200794,0.00024213,2]
[364642579,1749175832786,-215.0738,0.00024252,2]
[364642580,1749175832795,-172.02221,0.00024298,2]
[364642581,1749175832804,-480.3684,0.00024299,2]
[364642582,1749175832813,-504.96759315,0.00024299,2]
[364642583,1749175832823,-1015.38,0.000243,2]
[364642584,1749175832832,-2000.0,0.000243,2]
[364642585,1749175832842,-2000.0,0.000243,2]
[364642586,1749175832851,-151.0,0.000243,10]
[364642587,1749175832860,-150.0,0.000243,5]
[364642588,1749175832869,-500.0,0.000243,5]
[364642589,1749175832878,-1302.322202,0.000243,2]
[364642590,1749175832889,-440.0,0.00024306,2]
[364642591,1749175832898,-440.0,0.00024306,2]
[364642592,1749175832907,-185.06,0.00024307,2]
[364642593,1749175832916,-150.115,0.00024308,2]
[364642594,1749175832925,-150.0,0.00024308,2]
[364642595,1749175832935,-196.813,0.00024308,2]
[364642596,1749175832945,-150.0,0.00024308,2]
[364642597,1749175832955,-962.0,0.00024308,2]
[364642598,1749175832964,-955.74679055,0.00024308,2]
[364642604,1749175838025,-1268.25320945,0.00024308,2]
[364642605,1749175838036,-709.0,0.00024308,2]
[364642606,1749175838045,-423.30705217,0.0002431,2]
[364642607,1749175838055,-504.60050763,0.0002431,2]
[364642608,1749175838065,-432.08334056,0.0002431,2]
[364642609,1749175838074,-432.50484927,0.0002431,2]
[364642611,1749175838084,-433.96694733,0.0002431,2]
[364642613,1749175838094,-270.29243344,0.0002431,2]
[364642615,1749175838103,-447.45219099,0.0002431,2]
[364642617,1749175838113,-12677.18918728,0.0002431,30]
[364642619,1749175838122,-525.74119469,0.00024312,2]
[364642621,1749175838132,-541.92187138,0.00024312,2]
[364642623,1749175838141,-507.13460578,0.00024312,2]
[364642625,1749175838151,-500.0,0.00024312,2]
[364642626,1749175838161,-385.53736714,0.00024312,2]
[364642627,1749175838171,-153.49695854,0.00024312,2]
[364642628,1749175838180,-205.19158911,0.00024312,2]
[364642629,1749175838189,-16419.39737831,0.00024313,20]
[364642630,1749175838199,-648062.44040055,0.00024313,20]
[364642632,1749175838208,-172.0,0.00024313,60]
[364642646,1749175838333,-1937.01476545,0.00024313,60]
[364642649,1749175838343,-163117.71,0.00024313,30]
[364642651,1749175838355,-586.5934596,0.00024313,35]
[364642653,1749175838366,-64680.0,0.00024313,60]
[364642655,1749175838375,-1019872.0888496,0.00024313,20]
[364642657,1749175838387,-37728.03826354,0.00024313,20]
[364642659,1749175838400,-75109.23394862,0.00024313,20]
[364642661,1749175838411,-389.13088222,0.00024313,20]
[364642664,1749175838422,-533.92,0.00024313,20]
[364642729,1749175839042,1656.87,0.00021918,60]
[364642880,1749175840505,-2939.98717375,0.00024313,20]
[364644825,1749176284651,394.36054365,0.00024657,120]
[364644826,1749176329467,284.2150831,0.00024314,120]
[364644828,1749176479061,2537.039295,0.00021917,60]
[364644833,1749176519615,168.50016015,0.00013699,2]
[364644834,1749176519640,33.77086785,0.00013699,2]
[364644843,1749176672033,2271.45,0.00019,2]
[364644854,1749176736099,-3471.52563625,0.0002,2]
[364644858,1749176819224,-387.0,0.0002,2]
[364644861,1749176827123,-461.43912134,0.0002,2]
[364644863,1749176832089,-181.14041102,0.0002,2]
[364644865,1749176840130,-496.65898384,0.0002,2]
[364644866,1749176843244,999.99913755,0.00024658,120]
[364644878,1749176922139,2787.29775925,0.00024314,120]
[364644881,1749176962215,-1920.23584755,0.0002,2]
[364644882,1749176962236,-150.0,0.0002001,2]
[364644883,1749176962256,-28.83150155,0.00020187,2]
[364644891,1749176978253,2645.0,0.00024658,120]
[364644895,1749177009326,500.0,0.00024657,120]
[364644938,1749177038314,-173.43952645,0.00020187,2]
[364644940,1749177038325,-150.0,0.00020372,2]
[364644942,1749177038335,-500.0,0.00020486,2]
[364644944,1749177038345,-430.0025756,0.00021541,2]
[364644946,1749177038354,-500.0,0.00021582,2]
[364644948,1749177038365,-1636.87462244,0.00022,5]
[364644950,1749177038374,-150.0,0.00022224,2]
[364644952,1749177038384,-300.0,0.00023225,2]
[364644954,1749177038394,-207.4,0.00023227,2]
[364644956,1749177038403,-1200.0,0.00023239,2]
[364644958,1749177038415,-300.0,0.0002324,2]
[364644960,1749177038424,-300.0,0.0002324,2]
[364644962,1749177038434,-300.0,0.0002324,2]
[364644964,1749177038443,-300.0,0.0002324,2]
[364644966,1749177038453,-440.0,0.00023241,2]
[364644968,1749177038463,-504.60050763,0.00023241,2]
[364644970,1749177038473,-432.08334056,0.00023241,2]
[364644972,1749177038483,-423.30705217,0.00023241,2]
[364644974,1749177038492,-432.50484927,0.00023241,2]
[364644977,1749177038502,-433.96694733,0.00023241,2]
[364644979,1749177038512,-270.29243344,0.00023241,2]
[364644981,1749177038521,-447.45219099,0.00023241,2]
[364644982,1749177038531,-247.71738194,0.00023241,2]
[364644985,1749177038541,-388.71811405,0.00023241,2]
[364644987,1749177038550,-440.0,0.00023241,2]
[364644989,1749177038563,-440.0,0.00023241,2]
[364644991,1749177038573,-252.39482283,0.00023241,2]
[364644993,1749177038583,-24900.0,0.00023241,2]
[364644995,1749177038593,-161.2315508,0.00023479,2]
[364644997,1749177038602,-582.2407367,0.00023479,2]
[364644999,1749177038611,-179.958363,0.00023479,2]
[364645001,1749177038621,-440.0,0.00023515,2]
[364645003,1749177038631,-440.0,0.00023515,2]
[364645005,1749177038640,-500.0,0.00023774,2]
[364645007,1749177038650,-440.0,0.00023789,2]
[364645009,1749177038660,-440.0,0.00023789,2]
[364645011,1749177038670,-500.0,0.00023799,2]
[364645013,1749177038679,-507.13460578,0.00023799,2]
[364645015,1749177038688,-541.92187138,0.00023799,2]
[364645017,1749177038698,-385.53736714,0.00023799,2]
[364645019,1749177038709,-153.49695854,0.00023799,2]
[364645021,1749177038719,-525.74119469,0.00023799,2]
[364645023,1749177038729,-26543.84595052,0.000238,3]
[364645026,1749177038746,-33274.44053882,0.000238,3]
[364645028,1749177038756,-353.394686,0.00023826,3]
[364645030,1749177038766,-788.73,0.0002389,10]
[364645032,1749177038775,-213.20349276,0.000239,10]
[364645034,1749177038785,-20000.0,0.0002395,3]
[364645036,1749177038794,-213.20349273,0.00023983,10]
[364645038,1749177038803,-703.04786273,0.00024,2]
[364645040,1749177038813,-190.55941656,0.00024,21]
[364645042,1749177038822,-1683.37476794,0.00024,2]
[364645044,1749177038832,-10090.11981347,0.00024,2]
[364645046,1749177038841,-440.0,0.00024063,2]
[364645048,1749177038851,-440.0,0.00024063,2]